{"text_format":"1","workbook":"xlsx","n_sheets":3,"sheets":["(様式１)依頼書印刷用","データ表","Sheet1"],"not_rendered":{"charts":0,"images":0,"macros":1,"external_links":0,"defined_names":1,"comments":1,"pivot_tables":0},"unopened":[],"bounds":{"document_bytes":16777216,"sheet_cells":100000,"rows_first":2000,"rows_last":500,"rows_between":2000,"halvings":0,"cell_chars":16384,"cell_head_chars":4096},"cells_cut":0,"cells_raw":0,"read":"whole","date_system":"1900"}

{"sheet":"(様式１)依頼書印刷用","index":0,"n_rows":97,"n_cols":125,"rows_kept":97,"cut":false,"hidden":false,"merged":[[13,76,20,93],[23,124,24,125],[25,124,26,125],[27,124,28,125],[29,124,30,125],[31,124,32,125],[33,124,34,125],[35,124,36,125],[37,124,38,125],[21,114,22,123],[23,114,24,123],[25,114,26,123],[27,114,28,123],[29,114,30,123],[31,114,32,123],[96,4,101,12],[96,13,101,69],[90,4,91,42],[90,43,91,69],[92,43,95,69],[93,11,94,11],[93,17,94,17],[93,23,94,23],[93,29,94,29],[93,35,94,35],[93,24,94,28],[92,4,92,42],[95,4,95,42],[3,4,4,11],[26,15,28,61],[22,59,23,68],[6,6,8,7],[6,68,7,69],[6,56,7,57],[6,50,7,55],[8,50,10,69],[11,6,13,33],[6,8,8,18],[16,49,18,50],[16,51,18,63],[16,64,18,68],[16,38,18,48],[6,58,7,67],[20,52,21,68],[20,44,21,51],[93,4,94,5],[93,41,94,42],[47,56,48,69],[93,30,94,34],[93,36,94,40],[93,6,94,10],[93,12,94,16],[93,18,94,22],[63,13,89,69],[61,13,62,69],[55,56,56,69],[55,4,89,12],[51,4,54,12],[53,56,54,69],[57,13,60,24],[57,25,60,55],[57,56,60,69],[55,13,56,24],[55,25,56,55],[37,25,38,28],[37,29,38,31],[37,32,38,33],[37,34,38,36],[37,37,38,41],[37,22,38,24],[37,20,38,21],[37,17,38,19],[37,13,38,16],[51,13,52,24],[53,13,54,24],[51,42,52,55],[53,42,54,55],[51,35,52,41],[53,35,54,41],[51,25,52,34],[53,25,54,34],[45,4,46,12],[47,4,50,12],[35,62,38,63],[39,63,40,69],[39,56,40,62],[39,49,40,55],[39,42,40,48],[39,35,40,41],[41,35,42,41],[43,35,44,41],[41,42,42,48],[41,49,42,55],[43,42,44,48],[43,49,44,55],[45,42,46,55],[45,13,46,24],[47,13,48,24],[47,25,48,34],[47,35,48,41],[47,42,48,55],[49,13,50,34],[49,35,50,69],[41,56,42,62],[41,63,42,69],[51,56,52,69],[45,25,46,34],[45,35,46,41],[35,49,36,55],[21,124,22,125],[37,49,38,55],[39,13,44,34],[35,13,36,41],[32,8,33,62],[35,4,38,12],[39,4,44,12],[45,56,46,69],[35,64,38,67],[35,68,38,69],[35,60,36,61],[23,73,24,74],[25,73,26,74],[27,73,28,74],[29,73,30,74],[31,73,32,74],[33,73,34,74],[43,56,44,62],[43,63,44,69],[35,42,38,48],[35,56,36,59],[37,60,38,61],[37,56,38,59]]}
[]
[]
[]
[null,null,null,null,"（様式１）"]
[]
[]
[null,null,null,null,null,null,"受番",null,null,null,null,null,null,null,null,null,null,null,null,null,null,null,null,null,null,null,null,null,null,null,null,null,null,null,null,null,null,null,null,null,null,null,null,null,null,null,null,null,null,null,null,null,null,null,null,null,"第",null,null,null,null,null,null,null,null,null,null,null,"号"]
[]
[null,null,null,null,null,null,null,null,null,null,null,null,null,null,null,null,null,null,null,null,null,null,null,null,null,null,null,null,null,null,null,null,null,null,null,null,null,null,null,null,null,null,null,null,null,null,null,null,null,null,"令和３年　　月　　日"]
[]
[]
[null,null,null,null,null,null,"沖縄県立総合教育センター所長　殿"]
[]
[null,null,null,null,null,null,null,null,null,null,null,null,null,null,null,null,null,null,null,null,null,null,null,null,null,null,null,null,null,null,null,null,null,null,null,null,null,null,null,null,null,null,null,null,null,null,null,null,null,null,null,null,null,null,null,null,null,null,null,null,null,null,null,null,null,null,null,null,null,null,null,null,null,null,null,null,"↑のボタンをクリックすると印刷が始まります"]
[]
[]
[null,null,null,null,null,null,null,null,null,null,null,null,null,null,null,null,null,null,null,null,null,null,null,null,null,null,null,null,null,null,null,null,null,null,null,null,null,null,null,null,null,null,null,null,null,null,null,null,null,"立",null,null,null,null,null,null,null,null,null,null,null,null,null,null,"学校"]
[]
[]
[]
[null,null,null,null,null,null,null,null,null,null,null,null,null,null,null,null,null,null,null,null,null,null,null,null,null,null,null,null,null,null,null,null,null,null,null,null,null,null,null,null,null,null,null,null,"校長"]
[null,null,null,null,null,null,null,null,null,null,null,null,null,null,null,null,null,null,null,null,null,null,null,null,null,null,null,null,null,null,null,null,null,null,null,null,null,null,null,null,null,null,null,null,null,null,null,null,null,null,null,null,null,null,null,null,null,null,null,null,null,null,null,null,null,null,null,null,null,null,null,null,null,null,null,null,null,null,null,null,null,null,null,null,null,null,null,null,null,null,null,null,null,null,null,null,null,null,null,null,null,null,null,null,null,null,null,null,null,null,null,null,null,null,"公文番号有無",null,null,null,null,null,null,null,null,null,{"$f":"IF(BG7=0,1,0)","v":1}]
[null,null,null,null,null,null,null,null,null,null,null,null,null,null,null,null,null,null,null,null,null,null,null,null,null,null,null,null,null,null,null,null,null,null,null,null,null,null,null,null,null,null,null,null,null,null,null,null,null,null,null,null,null,null,null,null,null,null,null,"（公印省略）"]
[null,null,null,null,null,null,null,null,null,null,null,null,null,null,null,null,null,null,null,null,null,null,null,null,null,null,null,null,null,null,null,null,null,null,null,null,null,null,null,null,null,null,null,null,null,null,null,null,null,null,null,null,null,null,null,null,null,null,null,null,null,null,null,null,null,null,null,null,null,null,null,null,null,null,null,null,null,null,null,null,null,null,null,null,null,null,null,null,null,null,null,null,null,null,null,null,null,null,null,null,null,null,null,null,null,null,null,null,null,null,null,null,null,null,"実施回数有無",null,null,null,null,null,null,null,null,null,{"$f":"IF(SUM(BE36:BH39)<1,1,0)","v":1}]
[]
[null,null,null,null,null,null,null,null,null,null,null,null,null,null,null,null,null,null,null,null,null,null,null,null,null,null,null,null,null,null,null,null,null,null,null,null,null,null,null,null,null,null,null,null,null,null,null,null,null,null,null,null,null,null,null,null,null,null,null,null,null,null,null,null,null,null,null,null,null,null,null,null,null,null,null,null,null,null,null,null,null,null,null,null,null,null,null,null,null,null,null,null,null,null,null,null,null,null,null,null,null,null,null,null,null,null,null,null,null,null,null,null,null,null,"実施形態有無",null,null,null,null,null,null,null,null,null,{"$f":"IF(COUNTA(AQ42:BR43)<1,1,0)","v":1}]
[null,null,null,null,null,null,null,null,null,null,null,null,null,null,null,"令和３年度　「出前研修」依頼書"]
[]
[]
[]
[]
[null,null,null,null,null,null,null,null,null,null,null,null,null,null,null,null,null,null,null,null,null,null,null,null,null,null,null,null,null,null,null,null,null,null,null,null,null,null,null,null,null,null,null,null,null,null,null,null,null,null,null,null,null,null,null,null,null,null,null,null,null,null,null,null,null,null,null,null,null,null,null,null,null,null,null,null,null,null,null,null,null,null,null,null,null,null,null,null,null,null,null,null,null,null,null,null,null,null,null,null,null,null,null,null,null,null,null,null,null,null,null,null,null,null,null,null,null,null,null,null,null,null,null,null,{"$f":"SUM(DU22:DV31)","v":3}]
[null,null,null,null,null,null,null,null,"下記の通り、県立総合教育センターによる「出前研修」を依頼します。"]
[]
[]
[null,null,null,null,"日　時",null,null,null,null,null,null,null,null,"令和3年　月　　日（　）",null,null,null,null,null,null,null,null,null,null,null,null,null,null,null,null,null,null,null,null,null,null,null,null,null,null,null,null,"今年度\n実施回数",null,null,null,null,null,null,"訪問研修",null,null,null,null,null,null,null,null,null,null,"回",null,"合計",null,{"$f":"BE36+BE38","v":0},null,null,null,"回"]
[]
[null,null,null,null,null,null,null,null,null,null,null,null,null,null,null,null,null,null,null,null,"時",null,null,null,null,"分～",null,null,null,null,null,null,"時",null,null,null,null,"分",null,null,null,null,null,null,null,null,null,null,null,"ｵﾝﾗｲﾝ研修",null,null,null,null,null,null,0,null,null,null,"回"]
[]
[null,null,null,null,"実施校\n実施場所",null,null,null,null,null,null,null,null,null,null,null,null,null,null,null,null,null,null,null,null,null,null,null,null,null,null,null,null,null,null,"実施形態",null,null,null,null,null,null,"単独",null,null,null,null,null,null,"共同",null,null,null,null,null,null,"研究会",null,null,null,null,null,null,"その他"]
[]
[null,null,null,null,null,null,null,null,null,null,null,null,null,null,null,null,null,null,null,null,null,null,null,null,null,null,null,null,null,null,null,null,null,null,null,"〇印"]
[]
[null,null,null,null,null,null,null,null,null,null,null,null,null,null,null,null,null,null,null,null,null,null,null,null,null,null,null,null,null,null,null,null,null,null,null,"参加人数"]
[]
[null,null,null,null,"連絡先",null,null,null,null,null,null,null,null,"学校名",null,null,null,null,null,null,null,null,null,null,null,"担当者",null,null,null,null,null,null,null,null,null,"職名",null,null,null,null,null,null,"TEL",null,null,null,null,null,null,null,null,null,null,null,null,null,"FAX"]
[]
[null,null,null,null,"実施校"]
[]
[null,null,null,null,null,null,null,null,null,null,null,null,null,"学校代表メールアドレス"]
[]
[null,null,null,null,"共同校"]
[]
[]
[]
[null,null,null,null,"研修計画",null,null,null,null,null,null,null,null,"研修コード",null,null,null,null,null,null,null,null,null,null,null,"研修番号・研修内容",null,null,null,null,null,null,null,null,null,null,null,null,null,null,null,null,null,null,null,null,null,null,null,null,null,null,null,null,null,null,"研修形態"]
[]
[]
[]
[]
[]
[null,null,null,null,null,null,null,null,null,null,null,null,null,"○依頼理由及び依頼内容を学校の課題を踏まえて具体的に記入してください"]
[]
[]
[]
[]
[]
[]
[]
[]
[]
[]
[]
[]
[]
[]
[]
[]
[]
[]
[]
[]
[]
[]
[]
[]
[]
[]
[]
[]
[null,null,null,null,"研修実施主事所属班",null,null,null,null,null,null,null,null,null,null,null,null,null,null,null,null,null,null,null,null,null,null,null,null,null,null,null,null,null,null,null,null,null,null,null,null,null,null,"研修実施主事名"]
[]
[]
[null,null,null,null,null,null,"教科",null,null,null,null,"・","経営",null,null,null,null,"・","理科",null,null,null,null,"・","特支",null,null,null,null,"・","ＩＴ",null,null,null,null,"・","産技"]
[]
[]
[null,null,null,null,"備　考",null,null,null,null,null,null,null,null,"パッケージ研修の場合は、こちらへ「パッケージ研修〇/３回」を記入して下さい。"]

{"sheet":"データ表","index":1,"n_rows":3,"n_cols":37,"rows_kept":3,"cut":false,"hidden":true,"merged":[[1,15,1,16]]}
[]
[null,"ID","学校名","代表者名","校種","管轄","研修担当者","分掌","電話","ＦＡＸ","メール","実施日","実施時間","形態","人数","場所",null,"回数","研修希望班","実施主事","研修分野","研修内容","依頼理由","備考","パッケージ","公文頭","公文番号","共同校１","担当者１","職名１","電話１","FAX1","共同校１","担当者１","職名１","電話１","FAX1"]
[null,null,{"$f":"'(様式１)依頼書印刷用'!AQ16","v":0},{"$f":"'(様式１)依頼書印刷用'!BA21","v":0},{"$f":"#REF!","v":{"$error":"#REF!"}},{"$f":"#REF!","v":{"$error":"#REF!"}},{"$f":"#REF!","v":{"$error":"#REF!"}},{"$f":"#REF!","v":{"$error":"#REF!"}},{"$f":"#REF!","v":{"$error":"#REF!"}},{"$f":"#REF!","v":{"$error":"#REF!"}},{"$f":"#REF!","v":{"$error":"#REF!"}},{"$f":"#REF!","v":{"$error":"#REF!"}},{"$f":"CONCATENATE(#REF!,\"-\",#REF!)","v":{"$error":"#REF!"}},{"$f":"#REF!","v":{"$error":"#REF!"}},{"$f":"#REF!","v":{"$error":"#REF!"}},{"$f":"#REF!","v":{"$error":"#REF!"}},{"$f":"#REF!","v":{"$error":"#REF!"}},{"$f":"#REF!","v":{"$error":"#REF!"}},{"$f":"#REF!","v":{"$error":"#REF!"}},{"$f":"#REF!","v":{"$error":"#REF!"}},{"$f":"#REF!","v":{"$error":"#REF!"}},{"$f":"#REF!","v":{"$error":"#REF!"}},{"$f":"#REF!","v":{"$error":"#REF!"}},{"$f":"#REF!","v":{"$error":"#REF!"}},{"$f":"#REF!","v":{"$error":"#REF!"}},{"$f":"#REF!","v":{"$error":"#REF!"}},{"$f":"#REF!","v":{"$error":"#REF!"}},{"$f":"#REF!","v":{"$error":"#REF!"}},{"$f":"#REF!","v":{"$error":"#REF!"}},{"$f":"#REF!","v":{"$error":"#REF!"}},{"$f":"#REF!","v":{"$error":"#REF!"}},{"$f":"#REF!","v":{"$error":"#REF!"}},{"$f":"#REF!","v":{"$error":"#REF!"}},{"$f":"#REF!","v":{"$error":"#REF!"}},{"$f":"#REF!","v":{"$error":"#REF!"}},{"$f":"#REF!","v":{"$error":"#REF!"}},{"$f":"#REF!","v":{"$error":"#REF!"}}]

{"sheet":"Sheet1","index":2,"n_rows":85,"n_cols":12,"rows_kept":85,"cut":false,"hidden":true,"merged":[]}
[]
[]
[]
[null,"校種","地区",null,"形態",null,null,"研修コード",null,null,null,"研修名"]
[null,null,null,null,"単独",null,null,"A-101「教科・授業づくり」"]
[null,"認こ","国頭",null,"共同",null,null,"B-201「総合的な学習の時間」"]
[null,"幼","中頭",null,"研究会",null,null,"B-202「特別活動」"]
[null,"小","那覇",null,"パッケージ",null,null,"B-203「特別の教科　”道徳”」"]
[null,"中","島尻",null,"その他",null,null,"C-301「学級づくり」"]
[null,"小中","宮古",null,null,null,null,"C-302「生徒指導・教育相談」"]
[null,"高","八重山",null,"研修班",null,null,"D-401「ICT教育」"]
[null,"特支","県立",null,"教科研修班",null,null,"E-501「特別支援教育」"]
[null,"研究会","他",null,"教育経営研修班",null,null,"F-601「高校全教科・新学習指導要領」"]
[null,"PTA",null,null,"理科研修班",null,null,"F-602「高校学校教育全般」"]
[null,"他",null,null,"IT教育班",null,null,"F-603「高校研究指定支援」"]
[null,null,null,null,"特別支援教育班"]
[null,null,null,null,"産業教育班"]
[]
[null,"チェック"]
[null,null,null,"パッケージ①",null,null,"A-101「教科・授業づくり」"]
[null,"✓",null,"パッケージ②",null,null," ①身につけさせたい資質・能力を育む授業づくり"]
[null,null,null,"パッケージ③",null,null," ②ノートづくり"]
[null,null,null,null,null,null," ③新学習指導要領に向けた授業づくり"]
[null,null,null,null,null,null," ④家庭学習の取り組み"]
[null,"校内",null,null,null,null," ⑤実践事例や実技研修、教材等の紹介と指導助言"]
[null,"校外",null,null,null,null," ⑥評価"]
[]
[null,null,null,null,null,null,"B-201「総合的な学習の時間」"]
[null,null,null,null,null,null," ①総合的な学習の時間の展開・指導計画・指導助言等"]
[null,null,null,null,null,null," ②農工商の技能を活用したものづくりや職業観の育成"]
[]
[null,null,null,null,null,null,"B-202「特別活動」"]
[null,null,null,null,null,null," ①学級経営"]
[null,null,null,null,null,null," ②学級づくり"]
[null,null,null,null,null,null," ③児童会・生徒会"]
[null,null,null,null,null,null," ④構成的エンカウンター等"]
[]
[null,null,null,null,null,null,"B-203「特別の教科道徳」"]
[null,null,null,null,null,null," ①新学習指導要領を踏まえた理論研修"]
[null,null,null,null,null,null," ②学校の課題を踏まえたワークショップ、演習、協議等の実践研修"]
[]
[null,null,null,null,null,null,"C-301「学級づくり」"]
[null,null,null,null,null,null," ①学校内人材育成"]
[null,null,null,null,null,null," ②学校組織マネジメント"]
[null,null,null,null,null,null," ③環境教育"]
[null,null,null,null,null,null," ④キャリア教育"]
[null,null,null,null,null,null," ⑤幼児教育"]
[null,null,null,null,null,null," ⑥健康教育"]
[null,null,null,null,null,null," ⑦食教育"]
[]
[null,null,null,null,null,null,"C-302「生徒指導・教育相談」"]
[null,null,null,null,null,null," ①課題を抱える生徒への支援の在り方と校内体制"]
[null,null,null,null,null,null," ②予防的・開発的教育相談"]
[]
[null,null,null,null,null,null,"Ｄ-401「ＩＣＴ教育」"]
[null,null,null,null,null,null," ①タブレット端末、ＩＣＴ機器活用等のＩＣＴ教育実践研修"]
[null,null,null,null,null,null," ②情報モラル、情報セキュリティー"]
[null,null,null,null,null,null," ③小学校プログラミング教育"]
[]
[null,null,null,null,null,null,"Ｅ-501「特別支援教育」"]
[null,null,null,null,null,null," ①障害特性（発達障害を含む）の理解、支援の在り方"]
[null,null,null,null,null,null," ②教育課程"]
[null,null,null,null,null,null," ③就学支援"]
[null,null,null,null,null,null," ④交流および共同学習"]
[null,null,null,null,null,null," ⑤インクルーシブ教育システムの構築"]
[null,null,null,null,null,null," ⑥特別支援教育実践"]
[null,null,null,null,null,null," ⑦特別支援学校教育支援システム"]
[]
[null,null,null,null,null,null,"F-601「高校全教科新学習指導要領」"]
[null,null,null,null,null,null," ①新学習指導要領に向けた授業づくり"]
[null,null,null,null,null,null," ②実践事例や実技研修、教材等の紹介と指導助言等"]
[]
[null,null,null,null,null,null,"F-602「高校学校教育全般」"]
[null,null,null,null,null,null," ①教科会・学年会・学科会等の活性化に向けた学校組織全体への支援"]
[null,null,null,null,null,null," ②カリキュラム・マネジメント"]
[null,null,null,null,null,null," ③キャリア教育"]
[null,null,null,null,null,null," ④学校内人材育成（ＯＪＴ）"]
[null,null,null,null,null,null," ⑤学校組織マネジメント"]
[null,null,null,null,null,null," ⑥食教育"]
[null,null,null,null,null,null," ⑦特色ある学校づくり"]
[null,null,null,null,null,null," ⑧生徒指導・教育相談"]
[null,null,null,null,null,null," ⑨健康教育"]
[null,null,null,null,null,null," ⑩office365活用研修等、ICT教育"]
[null,null,null,null,null,null," ⑪環境教育"]
[null,null,null,null,null,null," ⑫総合的な探究の時間"]